Cogmind - Beta 16 @@@ ROGUE MODE // 2026.01.27 @ 02:04:44 Player: shapeshifter Result: Destroyed by L-61 Swordsman with Power Sword Performance ------------- Evolutions (7) 3500 Regions Visited (25) 5000 Robots Destroyed (373) 1865 Value Destroyed (18050) 18050 Prototype IDs (52) 1040 Alien Tech Used (1) 200 Bonus (15230) 15230 TOTAL SCORE: 44885 Bonus ------- Triggered Max Security 1000 High Alert Combat Kills 2999 Follower Combat Kills 1473 Network Hubs Disabled 800 Aligned with FarCom 300 Met Imprinter 300 Met Warlord at Base 500 MAIN.C Attacked Warlord 500 Warlord Defense Kills 5042 Built Enhanced Grunts 300 A7 Reached Mainframe 300 Met R17 at Cetus 500 Met R17 at Research 2000 Scanned by Researcher 500 Friendly Fire -1284 Cogmind --------- Core Integrity 0/1300 Matter 300/300 Energy 90/100 System Corruption 21% Temperature Hot (283) Movement Core (50) Location -3/Quarantine Parts ------- > --- POWER (3) -------- (None) > --- PROPULSION (8) --- (None) > --- UTILITY (4) ------ Advanced Heat Sink > --- WEAPON (6) ------- (None) > --- INVENTORY (5) ---- GAL Module Peak State ------------ > --- POWER ------------ Vortex Chain Reactor Matter Drive > --- PROPULSION ------- Armored Treads Medium Treads Improved Medium Treads Armored Medium Treads Armored Medium Treads Armored Medium Treads Armored Medium Treads Biometal Medium Treads > --- UTILITY ---------- Experimental Cooling System Huge Storage Unit Experimental Phase Shifter Improved Force Field > --- WEAPON ----------- Plasma Storm RU-N14's Throwing Claymores v3 > --- INVENTORY -------- Reinforced Fission Core Reinforced Fission Core Advanced Heat Sink Advanced Energy Well High-capacity Matter Pod Precision Matter Filter Centrium Medium Armor Plating Centrium Medium Armor Plating Experimental Thermal Shield Improved Force Field High-powered Tractor Beam Vortex Shotgun Vortex Shotgun Heavy Autocannon Heavy Autocannon Heavy Autocannon Long-range Missile Launcher Advanced Remote Datajack RU-N14's Throwing Claymores v3 Core Stripper GAL Module [Rating: 172] Favorites ----------- Power Fusion Reactor Engine Improved Deuterium Engine Power Core Neutrino Core Reactor Fusion Reactor Propulsion Light Treads Treads Light Treads Leg Myomer Leg Wheel Wheel Utility Huge Storage Unit Device Advanced Heat Sink Storage Huge Storage Unit Processor Advanced Targeting Computer Hackware Advanced Hacking Suite Protection Improved Medium Armor Plating Weapon Cooled Plasma Rifle Energy Gun Cooled Plasma Rifle Energy Cannon Advanced Plasma Cannon Ballistic Gun KE Penetrator Ballistic Cannon Bore Cannon Launcher Long-range Missile Launcher Special Weapon RU-N14's Throwing Claymores v3 Build | -11 -10 -10 -10 -9 -8 -7 -7 -7 -7 -6 -6 -5 -5 -5 -5 -5 -4 -4 -4 -4 -4 -4 -3 -3 -3 ------- Run | Yrd Mat Min Exi Min Mat Fac Low Low Zio Pro Fac Fac Ext Cet Arc Hub Fac Was Fac Upp Upp War Pro Res Qua Slots Evolved 14 | . . . . . 4 2 . . . . 2 2 . . . . 2 . . . . . . 2 . Power 2 | . . . . . . 1 . . . . . . . . . . 1 . . . . . . . . Propulsion 6 | . . . . . 2 . . . . . 1 1 . . . . . . . . . . . 2 . Utility 2 | . . . . . 1 1 . . . . . . . . . . . . . . . . . . . Weapon 4 | . . . . . 1 . . . . . 1 1 . . . . 1 . . . . . . . . Parts Attached 224 | 7 12 1 2 7 17 20 6 1 5 7 16 16 7 8 . 12 17 8 13 2 . 25 . 6 9 Power 35 | 1 2 . 1 1 2 2 1 . . 2 2 5 . 1 . 1 5 3 2 . . 2 . 1 1 Engine 11 | 1 2 . 1 1 1 1 1 . . . . 1 . . . . 2 . . . . . . . . Core 10 | . . . . . 1 1 . . . 2 2 1 . . . . . . 2 . . 1 . . . Reactor 14 | . . . . . . . . . . . . 3 . 1 . 1 3 3 . . . 1 . 1 1 Propulsion 50 | 2 1 1 . 1 6 5 . . . 2 4 2 4 4 . 3 . 2 4 . . 7 . 1 1 Treads 42 | 2 1 1 . 1 6 5 . . . 2 1 1 2 4 . 3 . 2 2 . . 7 . 1 1 Leg 2 | . . . . . . . . . . . . . . . . . . . 2 . . . . . . Wheel 6 | . . . . . . . . . . . 3 1 2 . . . . . . . . . . . . Hover . | . . . . . . . . . . . . . . . . . . . . . . . . . . Flight . | . . . . . . . . . . . . . . . . . . . . . . . . . . Utility 63 | 2 4 . 1 2 3 8 4 . 3 2 4 1 2 2 . 3 6 1 2 2 . 5 . 3 3 Device 27 | 1 1 . . . . 4 2 . . . 3 1 2 . . . 5 . . 2 . 5 . . 1 Storage 6 | 1 2 . . . . . . . 1 . . . . 1 . . . . . . . . . 1 . Processor 5 | . . . . . . 1 1 . 1 . . . . . . . . . . . . . . 2 . Hackware 1 | . . . . . . . . . . . . . . . . 1 . . . . . . . . . Protection 24 | . 1 . 1 2 3 3 1 . 1 2 1 . . 1 . 2 1 1 2 . . . . . 2 Artifact . | . . . . . . . . . . . . . . . . . . . . . . . . . . Weapon 76 | 2 5 . . 3 6 5 1 1 2 1 6 8 1 1 . 5 6 2 5 . . 11 . 1 4 Energy Gun 14 | . . . . . . 2 . 1 . . 1 5 . . . 1 . . . . . 4 . . . Energy Cannon 2 | . . . . . . . . . . . . 2 . . . . . . . . . . . . . Ballistic Gun 37 | 2 4 . . 3 6 3 1 . 2 . . 1 . 1 . 4 5 . 4 . . 1 . . . Ballistic Cannon 14 | . . . . . . . . . . 1 4 . . . . . 1 1 1 . . 3 . 1 2 Launcher 3 | . 1 . . . . . . . . . 1 . . . . . . 1 . . . . . . . Special Weapon 6 | . . . . . . . . . . . . . 1 . . . . . . . . 3 . . 2 Impact Weapon . | . . . . . . . . . . . . . . . . . . . . . . . . . . Slashing Weapon . | . . . . . . . . . . . . . . . . . . . . . . . . . . Piercing Weapon . | . . . . . . . . . . . . . . . . . . . . . . . . . . Special Melee Weapon . | . . . . . . . . . . . . . . . . . . . . . . . . . . Unidentified Prototypes 23 | . . . . . 1 . 1 . . . . 3 . 4 . . . . . . . 9 . 4 1 Corrupted Parts 10 | . . . . . . . . . . . . . . . . 3 . . 3 . . 3 . . 1 System Corruption 55 | . . . . . . . . . . . . . . . . 18 . . 20 . . 12 . . 5 Parts Lost 89 | . . 2 . 7 7 6 5 1 . 4 6 . . 1 . 8 15 9 . 1 1 1 . . 15 Power 15 | . . . . 1 1 . 2 . . 1 1 . . . . 1 4 3 . . . . . . 1 Propulsion 25 | . . 1 . 2 1 3 1 . . 2 4 . . . . 1 2 2 . . . 1 . . 5 Utility 18 | . . . . 2 1 1 2 . . . . . . 1 . 1 2 . . 1 1 . . . 6 Weapon 31 | . . 1 . 2 4 2 . 1 . 1 1 . . . . 5 7 4 . . . . . . 3 Highest Loss Streak 11 | . . 2 . 4 3 4 2 1 . 2 2 . . 1 . 2 4 8 . 1 1 1 . . 11 To Critical Strikes 4 | . . . . . . . . . . . . . . . . . 1 3 . . . . . . . Average Backups 17 | 2 9 19 18 14 11 16 16 16 18 15 15 19 20 19 19 17 14 16 21 22 22 22 21 20 16 Power 1 | 1 1 2 1 . 1 . . . . . 1 1 3 2 2 1 1 . . 2 2 1 2 2 1 Propulsion . | . 1 1 1 . . . . . . . . . . 1 2 2 1 5 4 5 6 . . . . Utility 10 | . 5 11 11 10 9 11 13 14 15 13 13 14 12 9 8 7 7 8 11 9 8 8 9 9 7 Weapon 4 | . 1 3 4 2 1 3 3 2 3 2 1 3 3 5 7 5 1 . 3 4 5 10 9 8 6 Tool/Special . | . . . . . . . . . . . . . . . . . . . . . . . . . . Unused Backups 58 | . 2 . 4 . 6 5 3 . . 1 2 1 4 10 . . . . 5 1 . 10 . . 4 Power 5 | . . . 1 . 2 . . . . . . . . 2 . . . . . . . . . . . Propulsion 9 | . 1 . . . . 1 . . . . . . 1 . . . . . 2 . . 4 . . . Utility 29 | . 1 . 3 . 4 2 3 . . . 2 1 2 7 . . . . 1 . . 1 . . 2 Weapon 13 | . . . . . . 2 . . . 1 . . 1 1 . . . . 1 1 . 5 . . 1 Tool/Special 2 | . . . . . . . . . . . . . . . . . . . 1 . . . . . 1 Average Slot Usage (%) 80 | . 100 100 71 93 73 93 92 83 83 73 76 83 92 86 82 78 74 43 68 89 88 74 73 68 59 Engine 4 | . 14 14 14 13 5 8 10 7 7 2 . 2 . . . . 3 1 . . . . . . . Core 2 | . . . . . . 4 . . . 3 12 2 . . . . . . 1 5 5 5 5 3 . Reactor 4 | . . . . . . . . . . . . 4 11 11 11 11 8 8 9 10 10 8 5 5 7 Treads 20 | . 28 28 28 24 22 26 27 23 23 19 11 6 12 19 17 16 14 9 15 21 21 21 31 30 28 Wheel 1 | . . . . . . . . . . . 1 14 13 1 . . . . . . . . . . . Device 7 | . 9 . . . . 7 6 7 7 7 12 11 11 5 5 5 7 5 5 10 11 11 15 13 8 Storage 6 | . 14 14 14 14 9 7 7 7 7 6 6 5 5 5 5 5 5 5 5 5 5 5 5 4 5 Processor 1 | . . . . . . 4 7 7 7 2 . . . . . . . . . . . . . . . Protection 6 | . 4 14 14 13 10 9 7 7 7 10 6 5 5 10 11 5 7 3 5 5 3 3 . . 1 Energy Gun 6 | . . . . . . 6 7 12 9 . . 18 28 28 29 18 1 . 5 . . 3 5 4 2 Ballistic Gun 10 | . 27 28 . 21 25 15 15 9 11 18 8 . . . . 6 22 3 7 21 20 3 1 3 1 Ballistic Cannon 2 | . . . . . . . . . . . 14 6 . . . . 2 2 9 10 10 9 . . . Peak Build Rating 172 | 7 10 9 9 10 27 40 41 39 46 56 64 91 103 141 141 143 154 132 106 107 107 153 151 159 172 Average Rating 72 | 5 7 8 7 9 16 35 37 38 40 42 59 74 97 125 141 128 127 66 87 105 104 128 150 152 132 On Entrance 73 | . 7 8 9 9 9 26 39 38 39 46 56 50 90 103 141 141 141 126 66 106 105 107 151 149 157 Avg Prop Armor Cover (%) 7 | . . . . . . . . . . . 5 6 10 8 . . . . 6 . . 3 . . . Naked Turns 10 | . . . . . . . . . . . . . . . . . . . . . . . . . 10 Heaviest Build 193 | 13 53 52 48 51 62 77 77 69 110 110 114 151 152 150 149 155 173 166 182 182 174 193 186 182 190 Greatest Support 240 | 40 40 40 40 40 82 82 80 60 60 76 84 36 56 240 240 240 240 230 186 186 186 195 158 186 221 Greatest Overweight (x) 15 | . 1 1 1 2 15 3 1 1 1 2 9 7 7 2 . . . 1 . . . 1 1 1 2 Average Overweight (x) . | . . 1 1 1 1 . . 1 . . 2 4 2 . . . . . . . . . 1 . . Largest Inventory Capacity 25 | 8 20 20 20 20 20 20 20 20 25 25 20 25 25 25 25 25 25 25 25 25 25 25 25 25 25 Average Capacity 22 | 6 12 20 20 20 20 20 20 20 23 20 20 24 25 25 25 25 25 25 25 25 25 25 25 25 22 Most Carried 25 | 5 17 20 20 20 20 20 20 20 25 25 20 25 25 25 25 25 21 23 25 25 25 25 25 25 25 Average Carried 20 | 2 9 19 19 16 14 19 19 19 22 19 19 23 24 24 25 21 16 18 23 24 24 24 25 24 20 Final Capacity 25 | 8 20 20 20 20 20 20 20 20 25 20 20 25 25 25 25 25 25 25 25 25 25 25 25 25 5 Final Carried 25 | 3 17 19 20 13 20 20 20 20 25 20 20 25 25 25 25 17 20 23 24 25 24 25 25 25 1 Class Distribution -------------------- 24% | Scavenger-Executioner 20% | Scavenger-Tank 16% | Mutant 11% | Scavenger-Gunner 6% | Commander-Tank 5% | Pyromaniac-Tank 4% | Tank 4% | Scavenger-Skirmisher 3% | Scavenger-Mutant Dominant Class ---------------- Mutant | -10/Materials Mutant | -10/Mines Mutant | -10/Exiles Mutant | -9/Mines Scavenger-Tank | -8/Materials Scavenger-Skirmisher | -7/Factory Scavenger-Tank | -7/Lower Caves Scavenger-Gunner | -7/Lower Caves Scavenger-Gunner | -7/Zion Scavenger-Tank | -6/Proximity Caves Tank | -6/Factory Pyromaniac-Tank | -5/Factory Pyromaniac-Tank | -5/Extension Commander-Tank | -5/Cetus Commander-Tank | -5/Archives Scavenger-Tank | -5/Hub_04(d) Scavenger-Executioner | -4/Factory Scavenger-Mutant | -4/Waste Scavenger-Tank | -4/Factory Scavenger-Executioner | -4/Upper Caves Scavenger-Executioner | -4/Upper Caves Scavenger-Executioner | -4/Warlord Scavenger-Executioner | -3/Proximity Caves Scavenger-Executioner | -3/Research Scavenger-Executioner | -3/Quarantine Resources | -11 -10 -10 -10 -9 -8 -7 -7 -7 -7 -6 -6 -5 -5 -5 -5 -5 -4 -4 -4 -4 -4 -4 -3 -3 -3 ----------- Run | Yrd Mat Min Exi Min Mat Fac Low Low Zio Pro Fac Fac Ext Cet Arc Hub Fac Was Fac Upp Upp War Pro Res Qua Matter Collected 12055 | 312 440 371 148 280 305 711 364 71 82 709 1378 798 176 130 . 504 1837 863 439 367 593 631 128 100 318 Remotely 1088 | . . . . . . . . . . . 311 . . . . . 319 . . . 296 . . . 162 Salvage Created 18817 | 135 653 331 . 283 549 1042 552 97 . 419 816 793 2248 404 476 1714 2494 1252 191 . 102 1913 549 723 1081 Parts 727 | 13 47 17 . 10 41 55 17 8 . 23 38 15 52 17 10 70 109 6 16 . 2 72 20 34 35 Haulers Intercepted 14 | . 2 . . . . 1 1 . . . 2 2 2 . . . 1 . 1 . . . . 2 . Recyclers Shooed 7 | . 2 . . 1 . . . . . . 1 1 . . . . 2 . . . . . . . . Parts Field Recycled . | . . . . . . . . . . . . . . . . . . . . . . . . . . Retrieved Matter . | . . . . . . . . . . . . . . . . . . . . . . . . . . Parts Self-Destructed 83 | . . . . . . . 18 8 4 23 . . . . . . . . . 13 2 . 15 . . Prevented . | . . . . . . . . . . . . . . . . . . . . . . . . . . Parts Restored . | . . . . . . . . . . . . . . . . . . . . . . . . . . Kills | -11 -10 -10 -10 -9 -8 -7 -7 -7 -7 -6 -6 -5 -5 -5 -5 -5 -4 -4 -4 -4 -4 -4 -3 -3 -3 ------- Run | Yrd Mat Min Exi Min Mat Fac Low Low Zio Pro Fac Fac Ext Cet Arc Hub Fac Was Fac Upp Upp War Pro Res Qua Combat Hostiles Destroyed 280 | . 14 8 . 12 13 14 12 4 . 7 17 7 28 6 2 29 23 5 2 . 2 33 9 5 28 Guns 153 | . 14 8 . 4 13 14 12 4 . 7 2 3 19 3 1 27 17 . . . 2 . 1 . 2 Cannons 24 | . . . . . . . . . . . 12 2 . . . . 5 1 2 . . 1 . . 1 AOE 82 | . . . . 8 . . . . . . 3 . . . . . 1 4 . . . 29 8 5 24 Classes Destroyed 28 | 2 5 1 . 1 2 1 . . . 1 1 . 2 . 1 2 1 1 . . . 3 2 1 1 Worker 19 | . 1 . . 1 . . . . . . 5 1 1 . . 2 6 . 1 . . . . 1 . Builder 13 | . . . . . . . . . . . 3 . 1 . . . 5 . . . . . . 4 . Tunneler 6 | 3 . 1 . . 1 . . . . . . . 1 . . . . . . . . . . . . Hauler 14 | . 2 . . . . 1 1 . . . 2 2 2 . . . 1 . 1 . . . . 2 . Recycler 15 | 1 1 . . 2 . 4 . . . . . 2 1 . . . 4 . . . . . . . . Mechanic 7 | . . . . . . . . . . . . . . . . . 2 . 1 . . . . . 4 Operator 9 | . . . . . . . . . . . . . . . 9 . . . . . . . . . . Drone 1 | . . . . . . . . . . . . . . . . . . . . . . . 1 . . Watcher 15 | . 3 . . . . 3 . . . . 2 1 1 . . 2 1 . . . . . . 2 . Swarmer 26 | . 6 . . 2 4 . 3 3 . . 4 . . . . . . . . . . . 3 . 1 Saboteur 2 | . . . . . . . . . . . . . . . . . . . . . . . . . 2 Grunt 112 | . 8 7 . 1 4 7 9 . . . 7 4 17 . . 12 7 . . . . 6 3 1 19 Brawler 9 | . . . . . . . . . . . . . 1 . . . . . . . . 5 . . 3 Duelist 7 | . . . . . . . . . . . . . 1 . . . 1 . . . . 3 1 . 1 Protector 5 | . . . . . . . . . . . . . . . . . . . . . . 4 . . 1 Sentry 20 | . . . . . 4 3 . . . 1 1 . 3 . 2 2 1 . 1 . . . 1 1 . Demolisher 5 | . . . . 2 . . . . . . . . 1 . . . . . . . . 2 . . . Specialist 4 | . . . . . . . . . . . . . . . . 2 . . . . . 2 . . . Hunter 27 | . . . . . 1 1 . 1 . 4 1 1 2 . . 3 9 . . . 2 . . 2 . Programmer 29 | . . . . . . 3 . . . 1 4 2 1 . . 6 4 . 1 . . 6 . . 1 Heavy 2 | . . . . . . . . . . . . . . . . 1 1 . . . . . . . . Behemoth 3 | . . . . . . . . . . 1 . . 2 . . . . . . . . . . . . Compactor 5 | . . . . . . . . . . . . . . . . . . 5 . . . . . . . Cetus Guard 6 | . . . . . . . . . . . . . . 6 . . . . . . . . . . . Lightning 3 | . . . . . . . . . . . . . . . . 3 . . . . . . . . . Striker 3 | . . . . . . . . . . . . . . . . . . . . . . 2 . 1 . Executioner 4 | . . . . . . . . . . . . . . . . . . . . . . 4 . . . Assembled 8 | . . 1 . 7 . . . . . . . . . . . . . . . . . . . . . Mutant 1 | . . . . . . . . . . . . . . . . . . . . . . . 1 . . Revision 1 | . . . . . . . . . . . . . . . . . . . . . . . . 1 . Best Kill Streak 25 | 2 3 3 . 8 4 3 4 3 . 2 6 4 12 4 5 9 12 2 3 . 1 15 3 8 25 Combat Bots Only 22 | . 3 2 . 6 4 3 4 3 . 2 4 2 10 4 2 8 6 2 1 . 1 15 3 2 22 Max Kills in Single Turn 6 | 1 2 2 . 2 1 1 1 1 . 1 3 1 2 1 1 2 4 1 2 . 1 6 2 5 6 Gunslinging 1 | . 1 1 . . . . . . . . . . 1 . . . 1 . . . . . . . . Exploded 6 | . . . . 2 . . . . . . 3 . . . . . 1 1 . . . 6 2 1 5 Melee . | . . . . . . . . . . . . . . . . . . . . . . . . . . Uniques/NPCs Destroyed . | . . . . . . . . . . . . . . . . . . . . . . . . . . Combat | -11 -10 -10 -10 -9 -8 -7 -7 -7 -7 -6 -6 -5 -5 -5 -5 -5 -4 -4 -4 -4 -4 -4 -3 -3 -3 -------- Run | Yrd Mat Min Exi Min Mat Fac Low Low Zio Pro Fac Fac Ext Cet Arc Hub Fac Was Fac Upp Upp War Pro Res Qua Hostile Shots Fired 2120 | . 61 56 . 35 80 176 57 19 . 111 131 16 70 4 . 204 236 10 4 47 54 157 18 30 544 Missed 635 | . 13 12 . 6 17 55 11 5 . 28 42 9 25 2 . 44 64 1 1 10 14 65 12 17 182 Hits 1485 | . 48 44 . 29 63 121 46 14 . 83 89 7 45 2 . 160 172 9 3 37 40 92 6 13 362 Melee 41 | . . . . 5 . . . . . . . . . . . . 1 9 . . . 2 . . 24 Projectile 1444 | . 48 44 . 24 63 121 46 14 . 83 89 7 45 2 . 160 171 . 3 37 40 90 6 13 338 AOE 16 | . . . . 12 . . . . . . . . 1 . . 1 . . 1 . . . . . 1 Critical Strikes 79 | . 1 . . 1 3 1 1 . . 1 4 . 1 . 1 17 11 5 . . 2 5 . 1 24 Part Disruptions 6 | . . . . . . . . . . 1 . 1 . . . . . . . . . 3 . . 1 Damage Taken 26785 | . 499 568 . 819 896 1629 752 86 . 1438 1106 67 556 113 54 4318 4377 649 128 536 530 1748 91 235 5590 Core 3094 | . 29 61 . 59 194 75 63 . . 187 41 . 31 29 . 440 326 41 . 11 42 156 . 14 1295 Absorbed by Shields 6263 | . . . . . . . . . . . 631 69 523 60 . . . 272 11 380 273 625 99 246 3074 Reduced by Siege Mode 102 | . . . . . . . . . . . . . . . . 60 42 . . . . . . . . Redirected to Shielding 14 | . . . . . . . . . . . . . . . . . . . 14 . . . . . . Ignored by Resistances 168 | . . . . . 4 104 . . . . 24 . . . . . . . . . . . . . 36 Regen/Repaired (Parts) 1549 | . . . . . . . . . 774 . . . . . . . . 86 24 . . 665 . . . Core Remaining (%) 64 | 100 . . . 40 64 . . . . 53 95 . . . . 50 . . . . . . 49 . . Volleys Fired 861 | 7 70 40 . 27 54 75 27 6 3 39 65 37 42 7 27 86 75 44 15 10 14 23 20 14 34 Largest 6 | 2 2 2 . 2 3 3 3 3 1 3 4 5 5 5 5 5 6 6 6 6 6 2 1 1 1 Hottest 300 | 40 40 40 . 50 66 188 133 188 28 94 165 128 120 120 120 160 206 206 207 207 207 300 300 300 300 Shots Fired 2463 | 14 142 78 . 46 148 199 81 17 3 102 224 107 210 35 135 285 290 88 47 48 69 26 21 14 34 Gun 2111 | 14 141 78 . 32 148 199 81 17 3 102 94 78 210 35 135 285 248 49 18 33 45 20 21 10 15 Cannon 287 | . . . . . . . . . . . 129 29 . . . . 42 12 29 15 24 . . . 7 Launcher 45 | . 1 . . 14 . . . . . . 1 . . . . . . 27 . . . . . . 2 Special 20 | . . . . . . . . . . . . . . . . . . . . . . 6 . 4 10 Kinetic 1617 | 14 141 78 . 32 148 163 54 8 3 102 223 27 . . . 93 289 61 45 48 69 . 10 . 9 Thermal 778 | . . . . . . 36 27 9 . . . 80 210 35 135 192 1 . 2 . . 19 11 10 11 Explosive 65 | . 1 . . 14 . . . . . . 1 . . . . . . 27 . . . 6 . 4 12 Electromagnetic . | . . . . . . . . . . . . . . . . . . . . . . . . . . Entropic 3 | . . . . . . . . . . . . . . . . . . . . . . 1 . . 2 Robot Hit Streak 23 | 5 10 9 . 10 12 17 8 8 . 14 12 16 16 14 15 17 12 10 2 3 4 23 5 20 6 Robot Miss Streak 16 | 2 9 4 . 3 4 6 10 2 . 3 11 6 4 1 6 5 5 3 9 9 6 5 16 6 8 Penetration Max 1 | . . . . . . . . . . . 1 . . . . 1 1 1 . . . . . . . Secondary Targets 43 | . 3 1 . 1 2 1 4 1 . 1 . . 12 2 1 9 5 . . . . . . . . Max Gunslinging Chain 1 | . 1 1 . 1 1 1 1 1 . 1 . . 1 1 1 1 1 . . . . . . . . Shots Hit Robots 1475 | 10 84 48 . 21 89 146 62 13 . 60 141 55 150 27 64 156 169 56 11 18 27 18 13 12 25 Core Hits 952 | 5 32 18 . 21 38 81 43 8 . 23 86 29 62 13 26 66 89 13 8 7 11 117 26 34 96 Critical Kills 19 | . . 1 . . . . . . . . . . . . . 2 15 1 . . . . . . . Critical Parts Destroyed 35 | . . . . . . . . . . 1 2 . . . . 2 22 3 1 1 2 . . . 1 Critical Strikes 115 | . . 1 . . . . . . . 1 4 4 20 3 8 11 37 12 3 3 2 . . 1 5 Burn 42 | . . . . . . . . . . . . 4 20 3 8 7 . . . . . . . . . Destroy 62 | . . 1 . . . . . . . 1 2 . . . . 4 37 12 1 2 2 . . . . Blast 5 | . . . . . . . . . . . 2 . . . . . . . 2 1 . . . . . Sever 5 | . . . . . . . . . . . . . . . . . . . . . . . . 1 4 Detonate 1 | . . . . . . . . . . . . . . . . . . . . . . . . . 1 Melee Attacks . | . . . . . . . . . . . . . . . . . . . . . . . . . . Impact . | . . . . . . . . . . . . . . . . . . . . . . . . . . Slashing . | . . . . . . . . . . . . . . . . . . . . . . . . . . Piercing . | . . . . . . . . . . . . . . . . . . . . . . . . . . Sneak Attacks . | . . . . . . . . . . . . . . . . . . . . . . . . . . Combat Hostiles . | . . . . . . . . . . . . . . . . . . . . . . . . . . Follow-up Attacks . | . . . . . . . . . . . . . . . . . . . . . . . . . . Damage Inflicted 52924 | 128 991 569 . 609 879 2174 1186 279 . 1111 3619 1393 3887 701 1726 4187 5223 3529 361 480 442 7351 1156 2066 8877 Guns 25943 | 128 991 569 . 146 879 2172 1186 279 . 1111 1196 952 3871 701 1726 4187 3955 797 38 253 292 106 132 63 213 Cannons 4026 | . . . . . . . . . . . 1847 441 . . . . 499 220 323 227 150 . . . 319 Explosions 22203 | . . . . 463 . . . . . . 576 . . . . . 769 2512 . . . 7077 1024 1808 7974 Melee . | . . . . . . . . . . . . . . . . . . . . . . . . . . Ramming 37 | . . . . . . 2 . . . . . . 16 . . . . . . . . . . . 19 Kinetic 18409 | 128 991 569 . 146 879 1673 735 114 . 1111 3043 441 . . . 1438 4429 1017 361 480 442 . 93 . 319 Thermal 22356 | . . . . . . 499 451 165 . . 214 952 3871 701 1726 2749 85 . . . . 5200 1063 1633 3047 Explosive 11120 | . . . . 463 . . . . . . 288 . . . . . 608 2512 . . . 1983 . 238 5028 Electromagnetic 175 | . . . . . . . . . . . 74 . . . . . 101 . . . . . . . . Impact . | . . . . . . . . . . . . . . . . . . . . . . . . . . Slashing 715 | . . . . . . . . . . . . . . . . . . . . . . 168 . 195 352 Piercing . | . . . . . . . . . . . . . . . . . . . . . . . . . . Entropic 112 | . . . . . . . . . . . . . . . . . . . . . . . . . 112 Highest Corruption 76 | . 2 2 2 8 . 4 4 4 4 1 3 1 1 . . 39 2 54 75 76 76 76 13 . 21 Average Corruption 14 | . 1 2 2 3 . 3 4 4 4 1 2 1 1 . . 18 1 33 62 75 76 19 13 . 10 Corruption Purged 1 | . . . . . . . . . . . . . 1 . . . . . . . . . . . . Corruption Blocked . | . . . . . . . . . . . . . . . . . . . . . . . . . . Effects 449 | . 19 14 12 13 . 32 15 16 . 7 23 2 1 . . 51 14 39 55 40 41 12 38 . 5 Message Errors 97 | . 2 3 4 3 . 7 4 6 . 1 6 . . . . 8 2 7 17 3 6 4 12 . 2 Matter Fused 93 | . 4 4 3 3 . 6 6 3 . 2 4 1 . . . 6 3 8 10 8 7 8 7 . . Heat Flow Errors 48 | . 2 2 1 2 . 3 2 4 . 1 4 . . . . 5 1 4 2 8 4 . 1 . 2 Energy Discharges 50 | . 3 1 3 2 . 6 . 1 . . 1 . . . . 5 2 4 13 1 3 . 5 . . Parts Rejected 7 | . . . . 1 . . . . . . 1 . . . . 2 1 . . 1 1 . . . . Parts Fused 3 | . . . 1 . . 1 . . . . . . . . . . . . . . . . 1 . . Data Loss (minor) 47 | . 4 2 . . . 4 2 1 . 1 1 1 1 . . 2 4 6 4 4 5 . 5 . . Data Loss (major) 19 | . . . . . . 2 1 . . . 2 . . . . 4 1 1 2 1 1 . 4 . . Misfires 22 | . 3 1 . 2 . 3 . 1 . 1 2 . . . . 1 . 3 3 . 1 . 1 . . Alerts 8 | . 1 . . . . . . . . . 1 . . . . 1 . 1 . 1 1 . 2 . . Misdirections 4 | . . . . . . . . . . . . . . . . . . 1 1 1 . . . . 1 Weapon Failures 51 | . . 1 . . . . . . . 1 1 . . . . 17 . 4 3 12 12 . . . . Overload Shots 22 | . . . . . . . . . . . . 12 . . . 10 . . . . . . . . . Effects 1 | . . . . . . . . . . . . . . . . 1 . . . . . . . . . Energy Bleed 1 | . . . . . . . . . . . . . . . . 1 . . . . . . . . . Overflow Damage 464 | . . . . 6 . . . . . . 66 . . . . . 57 19 1 . . 48 27 54 186 Projectiles 47 | . . . . . . . . . . . 29 . . . . . . . 1 . . 3 . . 14 Explosions 417 | . . . . 6 . . . . . . 37 . . . . . 57 19 . . . 45 27 54 172 Melee . | . . . . . . . . . . . . . . . . . . . . . . . . . . Knockbacks 43 | . . . . . . . . . . . 22 7 . . . . 4 . 3 . . . . . 7 Impact 1 | . . . . . . . . . . . . . . . . . . . . . . . . . 1 Kinetic 38 | . . . . . . . . . . . 21 7 . . . . 4 . 2 . . . . . 4 Secondary 4 | . . . . . . . . . . . 1 . . . . . . . 1 . . . . . 2 Self-Inflicted Damage 2157 | . . . . 89 . 267 . . . . 93 . 8 . . . 231 533 . . . 266 67 151 452 Shots 60 | . . . . 3 . 3 . . . . 2 . . . . . 3 11 . . . 11 3 7 17 Rammed 7 | . . . . . 1 1 . . . . . . 1 . . . . . . . . . . . 4 Targets Rammed 7 | . . . . . 1 1 . . . . . . 1 . . . . . . . . . . . 4 Kicked . | . . . . . . . . . . . . . . . . . . . . . . . . . . Crushed . | . . . . . . . . . . . . . . . . . . . . . . . . . . Highest Temperature 536 | . 227 246 206 224 31 284 350 196 . 63 536 96 16 9 . 340 338 290 182 404 264 318 492 360 293 Average Temperature 87 | . 41 34 109 40 12 47 98 72 . 36 134 32 4 5 . 90 115 122 53 125 94 125 144 116 123 Received Heat Transfer 3659 | . 201 285 . 12 315 498 306 . . 66 173 12 110 8 . 648 325 . . 28 . 12 5 16 639 Effects 15 | . . . . . . . . . . . 11 . . . . . . 1 . 1 . . 2 . . Shutdowns 7 | . . . . . . . . . . . 6 . . . . . . . . . . . 1 . . Energy Bleed 3 | . . . . . . . . . . . 2 . . . . . . 1 . . . . . . . Interference 2 | . . . . . . . . . . . 2 . . . . . . . . . . . . . . Short Circuit 1 | . . . . . . . . . . . 1 . . . . . . . . . . . . . . Damage (minor) 1 | . . . . . . . . . . . . . . . . . . . . 1 . . . . . Damage (major) 1 | . . . . . . . . . . . . . . . . . . . . . . . 1 . . Siege Activations 3 | . . . . . . . . . . . . . . . . 2 1 . . . . . . . . Total Turns 83 | . . . . . . . . . . . . . . . . 60 23 . . . . . . . . Longest Duration 43 | . . . . . . . . . . . . . . . . 43 23 . . . . . . . . Martial Activations . | . . . . . . . . . . . . . . . . . . . . . . . . . . Shielding Activations . | . . . . . . . . . . . . . . . . . . . . . . . . . . Robots Disrupted 2 | . . . . . . . . . . . 2 . . . . . . . . . . . . . . Combat Hostiles 1 | . . . . . . . . . . . 1 . . . . . . . . . . . . . . Robots Corrupted . | . . . . . . . . . . . . . . . . . . . . . . . . . . Combat Hostiles . | . . . . . . . . . . . . . . . . . . . . . . . . . . Parts Fried . | . . . . . . . . . . . . . . . . . . . . . . . . . . Impact Corruptions . | . . . . . . . . . . . . . . . . . . . . . . . . . . Robots Melted 22 | . . . . . . . . . . . . 3 9 3 1 2 . . . . . 3 . . 1 Combat Hostiles 21 | . . . . . . . . . . . . 2 9 3 1 2 . . . . . 3 . . 1 Parts Melted 116 | . . . . . . 1 . . . . . 6 33 3 11 23 . . . . . 21 5 10 3 Heat Transferred 39927 | . . . . . . 1075 1025 375 . . 150 2200 9829 1750 4400 5979 100 . . . . 5909 1483 2171 3481 Parts Sabotaged 4 | . . . . . . . . . . . . . . . . . . . . . . . . . 4 Parts Stolen . | . . . . . . . . . . . . . . . . . . . . . . . . . . Parts Stripped . | . . . . . . . . . . . . . . . . . . . . . . . . . . Power Chain Reactions 2 | . . . . . . . . . . . 1 . . . . . 1 . . . . . . . . Alert | -11 -10 -10 -10 -9 -8 -7 -7 -7 -7 -6 -6 -5 -5 -5 -5 -5 -4 -4 -4 -4 -4 -4 -3 -3 -3 ------- Run | Yrd Mat Min Exi Min Mat Fac Low Low Zio Pro Fac Fac Ext Cet Arc Hub Fac Was Fac Upp Upp War Pro Res Qua Maximum Alert Level 5 | . . . . . . . . . . . 1 . 3 2 2 2 3 1 . . . . . 1 5 Low Security (%) 69 | 100 100 100 . 100 100 100 . . . . 84 100 39 . . 57 . 6 100 . . . . 52 . Level 1 17 | . . . . . . . . . . . 15 . 22 . 98 35 24 93 . . . . . 47 . Level 2 6 | . . . . . . . . . . . . . 28 100 1 7 5 . . . . . . . . Level 3 4 | . . . . . . . . . . . . . 9 . . . 70 . . . . . . . . Level 4 . | . . . . . . . . . . . . . . . . . . . . . . . . . . Level 5 . | . . . . . . . . . . . . . . . . . . . . . . . . . . High Security . | . . . . . . . . . . . . . . . . . . . . . . . . . . Max Security 1 | . . . . . . . . . . . . . . . . . . . . . . . . . 99 Peak Influence 2312 | 5 167 49 . 50 80 105 . . . . 303 127 1079 645 402 589 953 309 135 . . . . 375 2312 Initial 599 | . . 26 . . . . . . . . . 127 18 599 209 107 282 307 123 . . . . 334 4 Average 200 | 1 64 11 . 11 18 19 . . . . 117 33 326 578 347 180 696 241 73 . . . . 188 1957 Influence Increases 11355 | 20 472 180 . 207 356 536 280 100 . 190 739 284 1617 365 318 1254 1194 270 480 251 50 645 215 500 832 Destroy 0b10 Robot/C 5820 | . 280 140 . 100 260 280 240 80 . 140 340 140 740 160 80 660 460 . 140 140 40 600 160 100 540 Destroy 0b10 Robot/NC 555 | 20 35 5 . 15 5 40 5 . . . 60 30 55 10 45 20 95 . 25 . . 15 5 45 25 Destroy Leader 1068 | . 80 20 . 20 70 88 20 20 . 50 98 36 86 . . 164 124 . 44 40 10 . 20 28 50 Allied During Kill 1286 | . . . . . . . . . . . . . 631 170 125 126 . . 178 56 . . . . . Successful Hack 149 | . 8 . . . 5 36 . . . . . 30 52 . . . . . 18 . . . . . . Select Force Hacks 180 | . 30 . . . . . . . . . . . . . . 150 . . . . . . . . . Disable Machine 750 | . . . . 15 . 45 . . . . 135 30 45 15 60 30 270 . 15 . . . . . 90 Destroy Structure 932 | . 9 . . 57 1 32 . . . . 61 18 8 10 8 44 230 270 60 . . . . 12 112 Advance Influence 300 | . . . . . . . . . . . . . . . . . . . . . . . . 300 . Partial Spotted 15 | . . . . . . . . . . . . . . . . . 15 . . . . . . . . Lose Combat Pursuer 300 | . 30 15 . . 15 15 15 . . . 45 . . . . 60 . . . 15 . 30 30 15 15 Influence Decreases 10669 | 20 404 218 30 207 356 443 373 100 . 190 478 507 584 912 533 986 893 971 630 278 50 72 736 544 154 Entered New Map 2776 | . . 42 30 . . . 35 . . . . 134 20 472 315 202 295 571 54 11 . . 573 18 4 Time Decay 6266 | 20 404 156 . 144 296 362 288 90 . 170 427 373 504 270 198 434 428 310 404 197 40 62 163 526 . Lost Part 815 | . . 20 . 63 60 41 50 10 . 20 51 . . 10 . 70 150 90 . 10 10 10 . . 150 Lost Ally 772 | . . . . . . . . . . . . . 60 160 20 280 20 . 172 60 . . . . . Purge Threat 40 | . . . . . . 40 . . . . . . . . . . . . . . . . . . . Squads Dispatched 71 | . 4 . . . 1 5 . . . . 15 4 3 . . 11 8 . 2 . . . . 6 12 Investigation 10 | . 1 . . . . 1 . . . . 1 . . . . 6 . . . . . . . 1 . Extermination 13 | . . . . . . 3 . . . . 3 2 . . . 2 1 . 2 . . . . . . Reinforcement 18 | . 3 . . . 1 1 . . . . 2 2 2 . . 3 2 . . . . . . 2 . Assault 15 | . . . . . . . . . . . . . 1 . . . 2 . . . . . . . 12 Garrison 15 | . . . . . . . . . . . 9 . . . . . 3 . . . . . . 3 . Intercept . | . . . . . . . . . . . . . . . . . . . . . . . . . . Searches Triggered . | . . . . . . . . . . . . . . . . . . . . . . . . . . Construction Impeded 8 | . . . . . . . . . . . 2 1 2 . . 1 1 . . . . . . 1 . Haulers Reinforced 2 | . . . . . . . . . . . . 1 . . . . . . . . . . . 1 . Active Scanning Responses . | . . . . . . . . . . . . . . . . . . . . . . . . . . Cargo Convoy Interrupts . | . . . . . . . . . . . . . . . . . . . . . . . . . . Stealth | -11 -10 -10 -10 -9 -8 -7 -7 -7 -7 -6 -6 -5 -5 -5 -5 -5 -4 -4 -4 -4 -4 -4 -3 -3 -3 --------- Run | Yrd Mat Min Exi Min Mat Fac Low Low Zio Pro Fac Fac Ext Cet Arc Hub Fac Was Fac Upp Upp War Pro Res Qua Distress Signals 23 | . 1 . . . 5 1 . . . . 1 . 1 2 . 2 3 . . . . . 1 5 1 Communications Jammed . | . . . . . . . . . . . . . . . . . . . . . . . . . . Distress Signals . | . . . . . . . . . . . . . . . . . . . . . . . . . . Times Spotted 476 | . 30 9 . 18 24 20 13 4 . 7 27 6 40 10 15 39 31 8 9 7 2 59 10 13 75 Peak Tracking Total 29 | . 5 2 . 5 3 4 5 3 . 2 4 2 6 5 2 6 5 2 2 2 2 19 5 4 29 Tactical Retreats 22 | . 1 1 . 1 1 1 1 . . . 3 . . . . 4 . 3 . 1 . 2 1 1 1 Traps | -11 -10 -10 -10 -9 -8 -7 -7 -7 -7 -6 -6 -5 -5 -5 -5 -5 -4 -4 -4 -4 -4 -4 -3 -3 -3 ------- Run | Yrd Mat Min Exi Min Mat Fac Low Low Zio Pro Fac Fac Ext Cet Arc Hub Fac Was Fac Upp Upp War Pro Res Qua Traps Triggered 14 | . 2 . . . . 1 . . . . 2 . 4 . . 1 1 . 2 . . 1 . . . Indirectly . | . . . . . . . . . . . . . . . . . . . . . . . . . . Trap Hack Attempts . | . . . . . . . . . . . . . . . . . . . . . . . . . . Triggered . | . . . . . . . . . . . . . . . . . . . . . . . . . . Disarmed . | . . . . . . . . . . . . . . . . . . . . . . . . . . Reprogrammed . | . . . . . . . . . . . . . . . . . . . . . . . . . . Reused . | . . . . . . . . . . . . . . . . . . . . . . . . . . Traps Extracted . | . . . . . . . . . . . . . . . . . . . . . . . . . . Installed . | . . . . . . . . . . . . . . . . . . . . . . . . . . Triggered . | . . . . . . . . . . . . . . . . . . . . . . . . . . Machines | -11 -10 -10 -10 -9 -8 -7 -7 -7 -7 -6 -6 -5 -5 -5 -5 -5 -4 -4 -4 -4 -4 -4 -3 -3 -3 ---------- Run | Yrd Mat Min Exi Min Mat Fac Low Low Zio Pro Fac Fac Ext Cet Arc Hub Fac Was Fac Upp Upp War Pro Res Qua Machines Disabled 55 | . . . . 1 . 3 . . . . 9 2 4 1 4 2 18 . 1 . . 4 . . 6 Max in Single Turn 6 | . . . . 1 . 3 . . . . 5 1 1 1 1 1 6 . 1 . . 1 . . 1 Network Hub 4 | . . . . . . . . . . . . . . . . 4 . . . . . . . . . Machines Repaired . | . . . . . . . . . . . . . . . . . . . . . . . . . . Machines Dismantled 4 | . . . . . . . . . . . . . 3 1 . . . . . . . . . . . Machines Sabotaged 3 | . . . . . . . . . . . . . . . . 3 . . . . . . . . . Overloaded Fab Kills . | . . . . . . . . . . . . . . . . . . . . . . . . . . Hacking | -11 -10 -10 -10 -9 -8 -7 -7 -7 -7 -6 -6 -5 -5 -5 -5 -5 -4 -4 -4 -4 -4 -4 -3 -3 -3 --------- Run | Yrd Mat Min Exi Min Mat Fac Low Low Zio Pro Fac Fac Ext Cet Arc Hub Fac Was Fac Upp Upp War Pro Res Qua Machines Accessed 52 | . 8 . 2 . 2 10 . . . . 5 5 7 . . 5 1 . 3 . . 2 1 1 . Terminals 36 | . 6 . . . 2 7 . . . . . 4 7 . . 5 1 . 2 . . . 1 1 . Fabricators . | . . . . . . . . . . . . . . . . . . . . . . . . . . Repair Stations 1 | . . . . . . . . . . . 1 . . . . . . . . . . . . . . Recycling Units 10 | . 2 . . . . 2 . . . . 4 1 . . . . . . 1 . . . . . . Scanalyzers 1 | . . . . . . 1 . . . . . . . . . . . . . . . . . . . Garrison Access . | . . . . . . . . . . . . . . . . . . . . . . . . . . Total Hacks 111 | . 19 . 2 . 5 19 . . . . 6 7 18 . . 11 1 . 14 . . 5 1 3 . Successful 39 | . 9 . 2 . 1 5 . . . . 1 2 4 . . 5 . . 3 . . 5 1 1 . Failed 72 | . 10 . . . 4 14 . . . . 5 5 14 . . 6 1 . 11 . . . . 2 . Catastrophic 16 | . 1 . . . . 4 . . . . 4 2 1 . . . 1 . 2 . . . . 1 . Database Lockouts . | . . . . . . . . . . . . . . . . . . . . . . . . . . Manual 44 | . 14 . 1 . 2 2 . . . . . . 11 1 . 11 . . 2 . . . . . . Terminals 80 | . 14 . . . 5 13 . . . . . 4 18 . . 11 1 . 10 . . . 1 3 . Fabricators . | . . . . . . . . . . . . . . . . . . . . . . . . . . Repair Stations 1 | . . . . . . . . . . . 1 . . . . . . . . . . . . . . Recycling Units 21 | . 5 . . . . 4 . . . . 5 3 . . . . . . 4 . . . . . . Scanalyzers 2 | . . . . . . 2 . . . . . . . . . . . . . . . . . . . Garrison Access . | . . . . . . . . . . . . . . . . . . . . . . . . . . Terminal Hacks 18 | . . . 2 . 1 3 . . . . . 2 . . . . . . 3 . . 5 1 1 . Record 2 | . . . 1 . . . . . . . . . . . . . . . . . . . 1 . . Robot Analysis 1 | . . . . . . 1 . . . . . . . . . . . . . . . . . . . Prototype ID Bank 4 | . . . . . . . . . . . . . . . . . . . . . . 4 . . . Open Door 2 | . . . . . . . . . . . . . . . . . . . . . . 1 . 1 . Branch Access Points 2 | . . . . . . 1 . . . . . 1 . . . . . . . . . . . . . Emergency Access Points 1 | . . . . . . . . . . . . . . . . . . . 1 . . . . . . Unreport Threat 1 | . . . . . . 1 . . . . . . . . . . . . . . . . . . . Locate Traps 1 | . . . . . . . . . . . . . . . . . . . 1 . . . . . . Zone Layout 3 | . . . . . 1 . . . . . . 1 . . . . . . 1 . . . . . . Proto ID Catalog 1 | . . . 1 . . . . . . . . . . . . . . . . . . . . . . Fabricator Hacks . | . . . . . . . . . . . . . . . . . . . . . . . . . . Repair Station Hacks . | . . . . . . . . . . . . . . . . . . . . . . . . . . Recycling Unit Hacks 4 | . 2 . . . . 1 . . . . 1 . . . . . . . . . . . . . . Retrieve Components 4 | . 2 . . . . 1 . . . . 1 . . . . . . . . . . . . . . Scanalyzer 1 | . . . . . . 1 . . . . . . . . . . . . . . . . . . . Retrieve Study 1 | . . . . . . 1 . . . . . . . . . . . . . . . . . . . Garrison Access Hacks . | . . . . . . . . . . . . . . . . . . . . . . . . . . Unauthorized Hacks 16 | . 7 . . . . . . . . . . . 4 . . 5 . . . . . . . . . Terminals 15 | . 6 . . . . . . . . . . . 4 . . 5 . . . . . . . . . Skim 10 | . 6 . . . . . . . . . . . 4 . . . . . . . . . . . . Sabotage 5 | . . . . . . . . . . . . . . . . 5 . . . . . . . . . Fabricators . | . . . . . . . . . . . . . . . . . . . . . . . . . . Repair Stations . | . . . . . . . . . . . . . . . . . . . . . . . . . . Recycling Units 1 | . 1 . . . . . . . . . . . . . . . . . . . . . . . . Tunnel 1 | . 1 . . . . . . . . . . . . . . . . . . . . . . . . Scanalyzers . | . . . . . . . . . . . . . . . . . . . . . . . . . . Garrison Access . | . . . . . . . . . . . . . . . . . . . . . . . . . . Data Cores Recovered . | . . . . . . . . . . . . . . . . . . . . . . . . . . Used . | . . . . . . . . . . . . . . . . . . . . . . . . . . Hacking Detections 38 | . 6 . . . 2 9 . . . . 4 5 7 . . 2 1 . 2 . . . . . . Full Trace Events 1 | . . . . . . . . . . . 1 . . . . . . . . . . . . . . Feedback Events . | . . . . . . . . . . . . . . . . . . . . . . . . . . Feedback Blocked . | . . . . . . . . . . . . . . . . . . . . . . . . . . Robot Schematics Acquired 4 | . . . . . . . . . 4 . . . . . . . . . . . . . . . . Robots Built . | . . . . . . . . . . . . . . . . . . . . . . . . . . Authchips . | . . . . . . . . . . . . . . . . . . . . . . . . . . Time . | . . . . . . . . . . . . . . . . . . . . . . . . . . Total Robot Build Rating . | . . . . . . . . . . . . . . . . . . . . . . . . . . Part Schematics Acquired 13 | . . . . . . . . . 13 . . . . . . . . . . . . . . . . Parts Built . | . . . . . . . . . . . . . . . . . . . . . . . . . . Authchips . | . . . . . . . . . . . . . . . . . . . . . . . . . . Time . | . . . . . . . . . . . . . . . . . . . . . . . . . . Total Part Build Rating . | . . . . . . . . . . . . . . . . . . . . . . . . . . Part Studies Acquired 1 | . . . . . . 1 . . . . . . . . . . . . . . . . . . . Parts Repaired . | . . . . . . . . . . . . . . . . . . . . . . . . . . Time . | . . . . . . . . . . . . . . . . . . . . . . . . . . Parts Recycled . | . . . . . . . . . . . . . . . . . . . . . . . . . . Recycled Matter . | . . . . . . . . . . . . . . . . . . . . . . . . . . Retrieved Matter . | . . . . . . . . . . . . . . . . . . . . . . . . . . Retrieved Components 19 | . 3 . . . . 10 . . . . 6 . . . . . . . . . . . . . . Parts Scanalyzed . | . . . . . . . . . . . . . . . . . . . . . . . . . . Part Schematics Acquired . | . . . . . . . . . . . . . . . . . . . . . . . . . . Parts Damaged . | . . . . . . . . . . . . . . . . . . . . . . . . . . Bothacking | -11 -10 -10 -10 -9 -8 -7 -7 -7 -7 -6 -6 -5 -5 -5 -5 -5 -4 -4 -4 -4 -4 -4 -3 -3 -3 ------------ Run | Yrd Mat Min Exi Min Mat Fac Low Low Zio Pro Fac Fac Ext Cet Arc Hub Fac Was Fac Upp Upp War Pro Res Qua Used RIF Installer . | . . . . . . . . . . . . . . . . . . . . . . . . . . Robots Hacked . | . . . . . . . . . . . . . . . . . . . . . . . . . . Non-combat . | . . . . . . . . . . . . . . . . . . . . . . . . . . Combat . | . . . . . . . . . . . . . . . . . . . . . . . . . . Robot Hacks Applied . | . . . . . . . . . . . . . . . . . . . . . . . . . . Relay Couplers Released 3 | . . . . . . . . . . . . . . . . . 3 . . . . . . . . Programmers 3 | . . . . . . . . . . . . . . . . . 3 . . . . . . . . Fabnet Peak Effective % . | . . . . . . . . . . . . . . . . . . . . . . . . . . Robots Rewired 19 | . . . . . . . . . . . . . 18 . . . . . . . . 1 . . . Allies Hacked 2 | . . . . . . . . . . . . . . . . . . . 1 1 . . . . . Hacks Repelled . | . . . . . . . . . . . . . . . . . . . . . . . . . . Allies | -11 -10 -10 -10 -9 -8 -7 -7 -7 -7 -6 -6 -5 -5 -5 -5 -5 -4 -4 -4 -4 -4 -4 -3 -3 -3 -------- Run | Yrd Mat Min Exi Min Mat Fac Low Low Zio Pro Fac Fac Ext Cet Arc Hub Fac Was Fac Upp Upp War Pro Res Qua Total Allies 48 | . . . . . . . . . . . . . 23 5 . . . 19 . . . 1 . . . Largest Group 20 | . . . . . . . . . . . . . 20 20 17 15 . 19 17 6 1 1 . . . Highest-Rated Group 1036 | . . . . . . . . . . . . . 730 1036 881 696 . 702 610 224 38 64 . . . Highest-Rated Ally 159 | . . . . . . . . . . . . . 159 143 143 96 . 50 50 46 38 64 . . . Total Orders 1 | . . . . . . . . . . . . . . . . . 1 . . . . . . . . EXPLORE 1 | . . . . . . . . . . . . . . . . . 1 . . . . . . . . Ally Attacks 414 | . . . . . . . . . . . . . 84 51 30 64 . 48 88 49 . . . . . Total Damage 9876 | . . . . . . . . . . . . . 1808 1324 563 2123 . 982 1731 1345 . . . . . Kills 41 | . . . . . . . . . . . . . 13 4 2 7 . 1 7 7 . . . . . Allies Corrupted 15 | . . . . . . . . . . . . . . . . 5 . 2 7 1 . . . . . Allies Melted 2 | . . . . . . . . . . . . . 1 . . 1 . . . . . . . . . Turrets Deployed 2 | . . . . . . . . . . . . . . . . 2 . . . . . . . . . Intel | -11 -10 -10 -10 -9 -8 -7 -7 -7 -7 -6 -6 -5 -5 -5 -5 -5 -4 -4 -4 -4 -4 -4 -3 -3 -3 ------- Run | Yrd Mat Min Exi Min Mat Fac Low Low Zio Pro Fac Fac Ext Cet Arc Hub Fac Was Fac Upp Upp War Pro Res Qua Active Infowar (turns) 3617 | 79 985 . . . . 1292 614 . 337 308 . . . . . . . . . . . . . 2 . Optics 2 | . . . . . . . . . . . . . . . . . . . . . . . . 2 . Terrain 1 | . 1 . . . . . . . . . . . . . . . . . . . . . . . . Seismic 1063 | 79 984 . . . . . . . . . . . . . . . . . . . . . . . . Decoding 645 | . . . . . . . . . 337 308 . . . . . . . . . . . . . . . T.N.C. 1906 | . . . . . . 1292 614 . . . . . . . . . . . . . . . . . . Robot Analysis Total 1 | . . . . . . 1 . . . . . . . . . . . . . . . . . . . Derelict Logs Recovered 7 | . . 1 . . . . . 1 3 . . . . . . . . . . . 2 . . . . Drone Launches 2 | . . . . . . . . . . . . . . . . . 2 . . . . . . . . Drone Recoveries . | . . . . . . . . . . . . . . . . . . . . . . . . . . Exploration | -11 -10 -10 -10 -9 -8 -7 -7 -7 -7 -6 -6 -5 -5 -5 -5 -5 -4 -4 -4 -4 -4 -4 -3 -3 -3 ------------- Run | Yrd Mat Min Exi Min Mat Fac Low Low Zio Pro Fac Fac Ext Cet Arc Hub Fac Was Fac Upp Upp War Pro Res Qua Turns Passed 27141 | 127 1435 797 844 625 1243 2142 724 831 2623 859 2027 1052 1361 593 410 1067 1040 686 965 445 496 1956 986 1461 346 Spaces Moved 11457 | 62 656 270 347 212 444 1027 320 338 1104 301 635 557 551 239 169 442 422 299 531 241 269 1060 365 476 120 Core 35 | 10 . . . . 23 . . . . . . . . . . . . . . . . . . . 2 Treads 10164 | 52 656 270 347 212 421 1027 320 338 1104 301 520 . . 204 169 442 422 299 531 241 269 1060 365 476 118 Legs . | . . . . . . . . . . . . . . . . . . . . . . . . . . Wheels 1258 | . . . . . . . . . . . 115 557 551 35 . . . . . . . . . . . Hover . | . . . . . . . . . . . . . . . . . . . . . . . . . . Flight . | . . . . . . . . . . . . . . . . . . . . . . . . . . Fastest Speed 50 | 50 160 240 240 240 155 155 160 240 160 160 125 131 130 130 160 160 160 160 160 160 160 160 248 167 50 Average Speed 192 | 142 175 240 240 259 211 176 180 240 235 229 265 149 137 155 160 161 161 173 160 160 160 167 248 206 165 Slowest Speed 800 | 160 240 240 240 320 800 385 240 240 240 320 480 185 185 160 160 163 163 240 160 160 160 248 248 248 244 Overloaded Moves . | . . . . . . . . . . . . . . . . . . . . . . . . . . Propulsion Burnouts . | . . . . . . . . . . . . . . . . . . . . . . . . . . Robots Hopped . | . . . . . . . . . . . . . . . . . . . . . . . . . . Potential Cave-ins . | . . . . . . . . . . . . . . . . . . . . . . . . . . Cave-ins Triggered . | . . . . . . . . . . . . . . . . . . . . . . . . . . Exploration Rate (%) 48 | 4 96 55 70 52 34 27 55 54 86 31 15 12 75 66 81 39 16 94 14 50 50 91 60 11 28 Regions Visited 25 Branch Regions 16 Pre-discovered Areas 4 | . 1 . 1 . . . . . 2 . . . . . . . . . . . . . . . . Known Exits Taken 3 | . . . . . . 1 . . . . . 1 . . . . . . . . . . 1 . . Unknown Exits Taken 20 | 1 1 1 1 1 1 . 1 1 1 1 1 . 1 1 1 1 . . 1 1 1 1 . 1 . Scrap Searched 16 | . . 1 . 2 . . 2 3 4 1 . . . . . . . . . 1 1 . 1 . . Spaces Dug 32 | . 7 . . . . . . . . . . 4 . . . 7 4 6 3 . . . 1 . . Terrain Destroyed 863 | . 7 . . 70 . 29 . . . 3 56 12 . . . 29 122 251 17 8 14 62 5 73 105 Melee . | . . . . . . . . . . . . . . . . . . . . . . . . . . Projectile 173 | . . . . . . . . . . 3 23 12 . . . 29 49 11 17 8 14 . 5 . 2 AOE 690 | . 7 . . 70 . 29 . . . . 33 . . . . . 73 240 . . . 62 . 73 103 Terrain Rammed . | . . . . . . . . . . . . . . . . . . . . . . . . . . Walls Destroyed . | . . . . . . . . . . . . . . . . . . . . . . . . . . Machines Disabled . | . . . . . . . . . . . . . . . . . . . . . . . . . . Actions | -11 -10 -10 -10 -9 -8 -7 -7 -7 -7 -6 -6 -5 -5 -5 -5 -5 -4 -4 -4 -4 -4 -4 -3 -3 -3 --------- Run | Yrd Mat Min Exi Min Mat Fac Low Low Zio Pro Fac Fac Ext Cet Arc Hub Fac Was Fac Upp Upp War Pro Res Qua Total 14762 | 87 808 345 363 250 657 1216 403 345 1124 391 820 705 1011 438 234 609 598 399 618 273 297 1201 416 933 221 Wait 1363 | 2 31 30 . . 98 60 39 . . 12 67 58 148 132 39 51 39 37 28 15 9 9 31 425 3 Move 11433 | 61 655 269 346 211 443 1026 319 337 1103 300 634 556 550 238 168 441 422 298 530 240 268 1059 364 475 120 Hop . | . . . . . . . . . . . . . . . . . . . . . . . . . . Pick Up 264 | 10 25 4 6 2 29 15 5 1 5 19 13 16 4 18 . 7 28 10 16 3 1 21 . 2 4 Fast Attach 82 | . . . . . 1 7 4 . 4 8 8 11 8 2 . . . . 5 1 1 12 . 5 5 Attach 143 | 7 3 2 . 9 14 5 1 1 1 5 1 4 . 4 . 13 22 8 11 1 1 11 . 2 17 Detach 18 | . . . 2 . . 1 . . 1 . . 1 . . . 1 1 1 2 . . 6 . 1 1 Swap 105 | . 11 . 2 1 4 10 2 . 3 . 16 4 8 7 . 5 6 . 1 2 2 16 1 3 1 Drop 215 | . 13 . 7 . 13 16 6 . 4 8 16 18 13 21 . 5 5 1 10 1 1 37 . 6 14 Fire 861 | 7 70 40 . 27 54 75 27 6 3 39 65 37 42 7 27 86 75 44 15 10 14 23 20 14 34 Melee . | . . . . . . . . . . . . . . . . . . . . . . . . . . Ram 1 | . . . . . . . . . . . . . 1 . . . . . . . . . . . . Kick . | . . . . . . . . . . . . . . . . . . . . . . . . . . Crush 6 | . . . . . 1 1 . . . . . . . . . . . . . . . . . . 4 Escape Stasis 43 | . . . . . . . . . . . . . 25 . . . . . . . . . . . 18 Rewire 195 | . . . . . . . . . . . . . 188 . . . . . . . . 7 . . . Trap . | . . . . . . . . . . . . . . . . . . . . . . . . . . Miscellaneous 33 | . . . . . . . . . . . . . 24 9 . . . . . . . . . . . Route ------- -11/Scrapyard -10/Materials (discovered 4 exits: *Mat x3 / [*Min]) -10/Mines (discovered 3 exits: Mat / *Exi / *Sub) -10/Exiles -9/Mines -8/Materials -7/Factory (discovered 4 exits: *Fac x2 / *Low x2) -7/Lower Caves -7/Lower Caves -7/Zion -6/Proximity Caves -6/Factory -5/Factory (discovered 5 exits: *Fac / Upp x2 / *Ext x2) -5/Extension (discovered 2 exits: *Fac / *Cet) -5/Cetus (discovered 2 exits: *Fac / [*Arc]) -5/Archives (discovered 3 exits: *Fac / *Hub x2) -5/Hub_04(d) (discovered 2 exits: *Fac x2) -4/Factory -4/Waste -4/Factory (discovered 2 exits: *Res / [*Upp]) -4/Upper Caves -4/Upper Caves -4/Warlord -3/Proximity Caves -3/Research -3/Quarantine History --------- Turn | Location | Event 14 | -11/Scrapyard | Discovered new exit (range 16) 128 | -11/Scrapyard | Entered Materials 300 | -10/Materials | Build established: Mutant 447 | -10/Materials | Discovered new exit (range 6) 794 | -10/Materials | Learned location of 2 exits from Mines 835 | -10/Materials | Learned location of 1 exit from Recycling 933 | -10/Materials | Discovered new exit (range 7) 985 | -10/Materials | Discovered new exit (range 10) 1321 | -10/Materials | Discovered new exit (range 9) 1563 | -10/Materials | Entered Mines 1564 | -10/Mines | Identified exit to Subcaves 1564 | -10/Mines | Identified exit to Materials 1585 | -10/Mines | Found DCF Scrap (15 items) 1638 | -10/Mines | Learned Materials garrison access intel 2066 | -10/Mines | Excavation squad dispatched 2066 | -10/Mines | A large section of the Mines collapsed 2350 | -10/Mines | Deemed a non-threat by the Exiles lab entrance 2350 | -10/Mines | Discovered new exit (range 5) 2360 | -10/Mines | Entered Exiles 2419 | -10/Exiles | Met 8R-AWN 2462 | -10/Exiles | Met EX-HEX 2558 | -10/Exiles | Met EX-DEC 2567 | -10/Exiles | Learned location of Zion (-7) 2874 | -10/Exiles | Met EX-BIN 2900 | -10/Exiles | Aligned with FarCom system 2903 | -10/Exiles | Given EX-Vault access code 2958 | -10/Exiles | Opened EX-Vault 2972 | -10/Exiles | Found Deploy-a-Sentry 2977 | -10/Exiles | Found Deploy-a-Sentry 2980 | -10/Exiles | Found Deploy-a-Sentry 3029 | -10/Exiles | Warned to stay clear of 0b10 Research branches 3059 | -10/Exiles | Exiles lab attacked by MAIN.C 3183 | -10/Exiles | Discovered new exit (range 10) 3204 | -10/Exiles | Left Exiles lab with Deploy-a-Sentry 3204 | -10/Exiles | Entered Mines 3390 | -9/Mines | Assembled infested the area 3395 | -9/Mines | Assisted by a Guerilla fighting off Assembled 3633 | -9/Mines | Core integrity fell below 50% 3674 | -9/Mines | Lost 4 parts (1n1u2w) 3788 | -9/Mines | Discovered new exit (range 12) 3829 | -9/Mines | Entered Materials 3829 | -8/Materials | Evolved 4 slots: Propulsion x2, Utility x1, Weapon x1 3830 | -8/Materials | Loaded intel: 1 garrison access location 4086 | -8/Materials | Lost 3 parts (1u2w) 4739 | -8/Materials | Build established: Scavenger-Tank 4921 | -8/Materials | Discovered new exit (range 15) 5072 | -8/Materials | Entered Factory 5072 | -7/Factory | Evolved 2 slots: Power x1, Utility x1 5715 | -7/Factory | Identified exit to Lower Caves 5941 | -7/Factory | Lost 4 parts (1n1u2w) 6232 | -7/Factory | Build established: Scavenger-Skirmisher 6545 | -7/Factory | Build established: Skirmisher 6778 | -7/Factory | Discovered new exit (range 16) 6878 | -7/Factory | Discovered new exit (range 15) 6908 | -7/Factory | Build established: Scavenger-Skirmisher 7214 | -7/Factory | Entered Lower Caves 7524 | -7/Lower Caves | Build established: Scavenger-Tank 7804 | -7/Lower Caves | Found Imp. Powered Armor 7876 | -7/Lower Caves | Discovered new exit (range 11) 7938 | -7/Lower Caves | Entered another Lower Caves area 8111 | -7/Lower Caves | Build established: Scavenger-Gunner 8606 | -7/Lower Caves | Discovered new exit (range 9) 8769 | -7/Lower Caves | Entered Zion 8819 | -7/Zion | System corruption cleaned by Quarantine Array 9023 | -7/Zion | Acquired unknown access codes intercepted by a Zionite 9067 | -7/Zion | Discovered new exit (range 13) 9663 | -7/Zion | Learned location of Extension (-5) 9841 | -7/Zion | Rebuked by Imprinter 10622 | -7/Zion | Found GAL Module 11296 | -7/Zion | Visited the Megawrench Repair Shop 11296 | -7/Zion | Megawrench repaired 9 parts 11351 | -7/Zion | Build established: Scavenger-Tank 11392 | -7/Zion | Entered Proximity Caves 11394 | -6/Proximity Caves | Attracted the attention of an 0b10 checkpoint 11690 | -6/Proximity Caves | Spotted B-75 Beast 11714 | -6/Proximity Caves | Destroyed B-75 Beast 12158 | -6/Proximity Caves | Discovered new exit (range 10) 12251 | -6/Proximity Caves | Entered Factory 12251 | -6/Factory | Evolved 2 slots: Propulsion x1, Weapon x1 13066 | -6/Factory | Garrison activated, responded to threat 13297 | -6/Factory | Build established: Tank 13402 | -6/Factory | Garrison activated, responded to threat 13947 | -6/Factory | Garrison activated, responded to threat 14252 | -6/Factory | Discovered new exit (range 15) 14278 | -6/Factory | Entered another Factory area 14278 | -5/Factory | Evolved 2 slots: Propulsion x1, Weapon x1 14279 | -5/Factory | Identified exit to Extension 14923 | -5/Factory | Build established: Pyromaniac-Tank 15017 | -5/Factory | Discovered new exit (range 15) 15020 | -5/Factory | Identified exit to Upper Caves 15330 | -5/Factory | Entered Extension 15448 | -5/Extension | Rescued a captive Derelict 15449 | -5/Extension | Rescued a captive Derelict 15483 | -5/Extension | Rescued A7 15890 | -5/Extension | Spotted B-75 Beast 15915 | -5/Extension | Spotted B-75 Beast 15924 | -5/Extension | Destroyed B-75 Beast 15928 | -5/Extension | Destroyed B-75 Beast 16030 | -5/Extension | Disrupted transfer network 16393 | -5/Extension | Rescued a captive Derelict 16394 | -5/Extension | Rescued a captive Derelict 16471 | -5/Extension | Build established: Commander-Tank 16530 | -5/Extension | First assault squad dispatched 16621 | -5/Extension | Discovered new exit (range 10) 16622 | -5/Extension | Discovered new exit (range 6) 16635 | -5/Extension | Destroyed 10 combat bots 16691 | -5/Extension | Entered Cetus 16691 | -5/Cetus | Accompanied by 20 allies (A7) 16696 | -5/Cetus | Acquired a Cetus Manufacturing Module code from A7 16708 | -5/Cetus | Spotted Cetus Guard 16720 | -5/Cetus | Spotted Cetus Guard 16720 | -5/Cetus | Spotted Cetus Guard 16721 | -5/Cetus | Spotted Cetus Guard 16723 | -5/Cetus | Allies destroyed Cetus Guard 16726 | -5/Cetus | Destroyed Cetus Guard 16732 | -5/Cetus | Allies destroyed Cetus Guard 16734 | -5/Cetus | Destroyed Cetus Guard 16760 | -5/Cetus | Lost 5 allies 16841 | -5/Cetus | Started Cetus Manufacturing Module 16866 | -5/Cetus | Manufactured an Enhanced Grunt 16878 | -5/Cetus | Escorted A7 to Cetus Mainframe 16891 | -5/Cetus | Manufactured an Enhanced Grunt 16916 | -5/Cetus | Manufactured an Enhanced Grunt 16927 | -5/Cetus | Discovered new exit (range 15) 16941 | -5/Cetus | Manufactured an Enhanced Grunt 16966 | -5/Cetus | Manufactured an Enhanced Grunt 17002 | -5/Cetus | Spotted Cetus Guard 17011 | -5/Cetus | Spotted Cetus Guard 17013 | -5/Cetus | Spotted Cetus Guard 17013 | -5/Cetus | Spotted Cetus Guard 17022 | -5/Cetus | Destroyed Cetus Guard 17026 | -5/Cetus | Destroyed Cetus Guard 17030 | -5/Cetus | Destroyed Cetus Guard 17034 | -5/Cetus | Destroyed Cetus Guard 17041 | -5/Cetus | Discovered new exit (range 15) 17051 | -5/Cetus | Lost 3 allies 17110 | -5/Cetus | Met Revision 17 17284 | -5/Cetus | Entered Archives 17284 | -5/Archives | Accompanied by 17 allies (A7) 17289 | -5/Archives | Received a hacking code to weaken MAIN.C 17362 | -5/Archives | Discovered new exit (range 14) 17388 | -5/Archives | Discovered new exit (range 16) 17614 | -5/Archives | Discovered new exit (range 16) 17694 | -5/Archives | Entered Hub_04(d) 17694 | -5/Hub_04(d) | Accompanied by 15 allies 17750 | -5/Hub_04(d) | Discovered new exit (range 5) 17848 | -5/Hub_04(d) | Network Hub disabled 17886 | -5/Hub_04(d) | Spotted Lightning 17889 | -5/Hub_04(d) | Lost 4 allies 17895 | -5/Hub_04(d) | Spotted Lightning 17897 | -5/Hub_04(d) | Spotted Lightning 17902 | -5/Hub_04(d) | DAS Turret deployed 17964 | -5/Hub_04(d) | DAS Turret deployed 17967 | -5/Hub_04(d) | Lost 12 allies 17980 | -5/Hub_04(d) | System corruption reached 10% 17987 | -5/Hub_04(d) | Destroyed Lightning 18023 | -5/Hub_04(d) | Destroyed Lightning 18191 | -5/Hub_04(d) | Network Hub disabled 18238 | -5/Hub_04(d) | Network Hub disabled 18435 | -5/Hub_04(d) | Destroyed Lightning 18562 | -5/Hub_04(d) | Build established: Scavenger-Tank 18669 | -5/Hub_04(d) | Network Hub disabled 18741 | -5/Hub_04(d) | Discovered new exit (range 4) 18743 | -5/Hub_04(d) | Destroyed 8 combat bots 18756 | -5/Hub_04(d) | System corruption reached 30% 18761 | -5/Hub_04(d) | Entered Factory 18761 | -4/Factory | Evolved 2 slots: Power x1, Weapon x1 19006 | -4/Factory | Garrison activated, responded to threat 19167 | -4/Factory | Lost 4 parts (2n2w) 19261 | -4/Factory | First assault squad dispatched 19348 | -4/Factory | Lost 4 parts (2p2w) 19801 | -4/Factory | Sucked down chute 19801 | -4/Factory | Entered Waste 19816 | -4/Waste | EMP discharged 19816 | -4/Waste | System corruption reached 10% 19821 | -4/Waste | Spotted C-40 Crusher 19830 | -4/Waste | Destroyed C-40 Crusher 19831 | -4/Waste | Build established: Scavenger-Executioner 19842 | -4/Waste | Spotted C-40 Crusher 19844 | -4/Waste | Spotted C-40 Crusher 19862 | -4/Waste | Crushed by Compactor (0 parts destroyed, 1 dropped) 19865 | -4/Waste | Crushed by Compactor (1 part destroyed, 1 dropped) 19868 | -4/Waste | Crushed by Compactor (0 parts destroyed, 1 dropped) 19877 | -4/Waste | Crushed by Compactor (1 part destroyed, 1 dropped) 19880 | -4/Waste | Crushed by Compactor (1 part destroyed, 1 dropped) 19883 | -4/Waste | Crushed by Compactor (1 part destroyed) 19887 | -4/Waste | Destroyed C-40 Crusher 19916 | -4/Waste | EMP discharged 19932 | -4/Waste | Lost 8 parts (2p2n4w) 19941 | -4/Waste | Spotted C-40 Crusher 19960 | -4/Waste | Destroyed C-40 Crusher 19998 | -4/Waste | Spotted C-40 Crusher 20016 | -4/Waste | EMP discharged 20023 | -4/Waste | Destroyed C-40 Crusher 20025 | -4/Waste | Spotted C-40 Crusher 20028 | -4/Waste | Destroyed C-40 Crusher 20116 | -4/Waste | EMP discharged 20116 | -4/Waste | System corruption reached 30% 20208 | -4/Waste | Met Warlord forces unprepared to attack 20216 | -4/Waste | EMP discharged 20316 | -4/Waste | EMP discharged 20326 | -4/Waste | Allies destroyed C-40 Crusher 20370 | -4/Waste | Build established: Scavenger-Mutant 20389 | -4/Waste | Discovered new exit (range 16) 20416 | -4/Waste | EMP discharged 20487 | -4/Waste | Entered Factory 20487 | -4/Factory | Accompanied by 17 allies 20858 | -4/Factory | Build established: Scavenger-Tank 20893 | -4/Factory | P-70 Sage assimilated allied SP-8SP(d) 20944 | -4/Factory | Lost 7 allies 21044 | -4/Factory | Discovered new exit (range 8) 21217 | -4/Factory | Discovered new exit (range 15) 21370 | -4/Factory | Build established: Scavenger-Executioner 21452 | -4/Factory | Entered Upper Caves 21452 | -4/Upper Caves | Accompanied by 6 allies 21532 | -4/Upper Caves | Spotted B-86 Titan 21556 | -4/Upper Caves | Allies destroyed B-86 Titan 21881 | -4/Upper Caves | Discovered new exit (range 4) 21897 | -4/Upper Caves | Entered another Upper Caves area 21897 | -4/Upper Caves | Accompanied by 1 ally 22007 | -4/Upper Caves | Encountered a Warlord checkpoint 22033 | -4/Upper Caves | Learned location of 1 exit from Proximity Caves 22040 | -4/Upper Caves | Learned Research interactive machine intel 22312 | -4/Upper Caves | Spotted B-86 Titan 22344 | -4/Upper Caves | Discovered new exit (range 15) 22393 | -4/Upper Caves | Entered Warlord 22453 | -4/Warlord | System corruption cleaned by Quarantine Array 22643 | -4/Warlord | Found Prototype Special Weapon 22649 | -4/Warlord | Found Prototype Special Weapon 22655 | -4/Warlord | Found Prototype Special Weapon 22658 | -4/Warlord | Found Prototype Special Weapon 22660 | -4/Warlord | Found Prototype Special Weapon 22663 | -4/Warlord | Found Prototype Special Weapon 22925 | -4/Warlord | Received a Watcher feed algorithm from an ecstatic Tinkerer 23043 | -4/Warlord | Found Prototype Energy Gun 23043 | -4/Warlord | Identified Plasma Storm 23293 | -4/Warlord | Identified RU-N14's Throwing Claymores v3 (x6) 23356 | -4/Warlord | Warlord's base attacked by MAIN.C 23463 | -4/Warlord | Met Warlord 23621 | -4/Warlord | Found Prototype Energy Gun 23623 | -4/Warlord | Found Prototype Energy Gun 23623 | -4/Warlord | Identified Vortex Rifle (x2) 23630 | -4/Warlord | Found Prototype Energy Gun 23630 | -4/Warlord | Identified Vortex Shotgun 23633 | -4/Warlord | Found Vortex Shotgun 23706 | -4/Warlord | Warlord forces counterattacked 23865 | -4/Warlord | Found Prototype Reactor 23865 | -4/Warlord | Identified Vortex Chain Reactor 23875 | -4/Warlord | Found Prototype Device 23876 | -4/Warlord | Identified System Purifier 23892 | -4/Warlord | Found Prototype Device 23892 | -4/Warlord | Identified Exp. Phase Shifter 23905 | -4/Warlord | Found Prototype Hackware 23939 | -4/Warlord | Spotted Executioner 23959 | -4/Warlord | Destroyed Executioner 24031 | -4/Warlord | Warlord base infiltrated, sounded retreat 24040 | -4/Warlord | Spotted Executioner 24051 | -4/Warlord | Destroyed Executioner 24054 | -4/Warlord | Destroyed Executioner 24075 | -4/Warlord | Destroyed 12 combat bots 24104 | -4/Warlord | Found Prototype Ballistic Cannon 24105 | -4/Warlord | Spotted Striker 24116 | -4/Warlord | Spotted Executioner 24116 | -4/Warlord | Destroyed Striker 24125 | -4/Warlord | Found Corrupted Prototype Ballistic Cannon 24185 | -4/Warlord | Lost 4 allies 24218 | -4/Warlord | Found Prototype Ballistic Cannon 24256 | -4/Warlord | Spotted Executioner 24256 | -4/Warlord | Spotted Striker 24256 | -4/Warlord | Spotted Executioner 24262 | -4/Warlord | Core integrity fell below 50% 24268 | -4/Warlord | Destroyed Executioner 24268 | -4/Warlord | Destroyed Striker 24289 | -4/Warlord | Discovered new exit (range 15) 24295 | -4/Warlord | Destroyed 15 combat bots 24297 | -4/Warlord | Lost 4 allies 24333 | -4/Warlord | Found Prototype Device 24346 | -4/Warlord | Identified Exp. Thermal Shield 24349 | -4/Warlord | Entered Proximity Caves 24350 | -3/Proximity Caves | Identified exit to Research 24450 | -3/Proximity Caves | Spotter reported a threat 24663 | -3/Proximity Caves | Spotter reported a threat 25335 | -3/Proximity Caves | Entered Research 25335 | -3/Research | Evolved 2 slots: Propulsion x2 25336 | -3/Research | Loaded intel: 45 interactive machine locations 25423 | -3/Research | Garrison activated, responded to threat 25535 | -3/Research | Revision forces began assault on 0b10 25631 | -3/Research | Met up with Revision 17++ 25696 | -3/Research | Discovered new exit (range 9) 26035 | -3/Research | Research terminal network offline 26367 | -3/Research | Identified Hvy. Autocannon (x3) 26446 | -3/Research | Spotted Striker 26447 | -3/Research | Destroyed Striker 26721 | -3/Research | Found Prototype Processor 26721 | -3/Research | Identified Exp. Core Analyzer 26796 | -3/Research | Entered Quarantine 26797 | -3/Quarantine | Maximum security lockdown engaged 26900 | -3/Quarantine | Found Alien Impact Weapon 26936 | -3/Quarantine | Found Alien Reactor 26937 | -3/Quarantine | Identified Matter Drive 27021 | -3/Quarantine | Destroyed 22 combat bots 27023 | -3/Quarantine | Lost 4 parts (1n3u) 27054 | -3/Quarantine | Spotted Striker 27065 | -3/Quarantine | Spotted Striker 27087 | -3/Quarantine | Spotted Investigator 27094 | -3/Quarantine | System corruption reached 10% 27094 | -3/Quarantine | Released all parts (8) 27094 | -3/Quarantine | Scanned by Researcher 27119 | -3/Quarantine | Core integrity fell below 50% 27134 | -3/Quarantine | Core integrity fell below 20% 27142 | -3/Quarantine | Destroyed by L-61 Swordsman with Power Sword Last Messages --------------- 27138_ Centrium Medium Armor Plating destroyed. 27138_ S-43 Plague stasis bubble strength at 164. 27139_ Acquired 4 matter. 27139_ Acquired 6 matter. 27139_ P-80 Master stasis bubble strength at 39. 27139_ Penetrated by Slug. 27139_ S-43 Plague stasis bubble strength at 158. 27139_ Stasis bubble strength at 104. 27140_ Hpw. Tractor Beam destroyed. 27140_ P-80 Master resets H-77 Assassin, system corruption cleaned. 27140_ Critical hit (Burn: +18). 27140_ S-43 Plague stasis bubble strength at 152. 27140_ Stasis bubble strength at 98. 27141_ Held in stasis. 27141_ Investigator is analyzing... 27141_ P-80 Master stasis bubble strength at 32. 27141_ S-43 Plague stasis bubble strength at 146. 27141_ Stasis bubble strength at 92. 27142_ System corrupted: Heat flow error (+283). 27142_ Slug penetrates Biostim Tank. Map ----- +----------------------------------------------------+ | ?????????????????????????????????????????????????? | | ?????????????????????????????????????????????????? | | ?????????????????????????????????????????????????? | | ?????????????????????????????????????????????????? | | ?????????????????????????????????????????????????? | | ?????????????????????????????????????????????????? | | ?????????????????????????????????????????????????? | | ?????????????????????????????????????????????????? | | ?????????????????????????????????????????????????? | | ?????????????????????????????????????????????????? | | ?????????????????????????????????????????????????? | | ?????????????????????????????????????????????????? | | ?????????????????????????????????????????????????? | | ?????????????????????????????????????????????????? | | ??????????????# ????????????????????????????????? | | ??????????????# ???????????????????????????????? | | ??????????????? ####?????????x?????????????????? | | ????#+##+###???? ?????????x?????????????????? | | ????# ????? ???????????????????????????? | | ###?# ?????? ??????????????????????????? | | #?# ???????? #?????????????????????????? | | #?# ?????????? #?????????????????????????? | | #?# #?????#######+#########?????????????????? | | #?# ####### """=! *| ; ###???????????????? | | #?# # # ""T""gsi! ; #???????????????? | | #?# # """ # " "[! l@ c;#???????????????????? | | #### # """ /ph p!phKKgg; #??????????????????? | | "%%! "%"""" # """ " sg/gh; #??????????????????? | | %=%*% " # """ " gbgg%; #??????????????????? | | "* ! [### """ "" i=]=;##??????????????????? | | %! = " x i% ##???????????????????? | | """""#"### "" """ % #????????????????????? | | #########?# """ """ #????????????????????? | | #???????????# """ """ #????????????????????? | | #????????????# #????????????????????? | | ???????????????#######+######????????????????????? | | ?????????????????????????????????????????????????? | | ?????????????????????????????????????????????????? | | ?????????????????????????????????????????????????? | | ?????????????????????????????????????????????????? | | ?????????????????????????????????????????????????? | | ?????????????????????????????????????????????????? | | ?????????????????????????????????????????????????? | | ?????????????????????????????????????????????????? | | ?????????????????????????????????????????????????? | | ?????????????????????????????????????????????????? | | ?????????????????????????????????????????????????? | | ?????????????????????????????????????????????????? | | ?????????????????????????????????????????????????? | | ?????????????????????????????????????????????????? | +----------------------------------------------------+ Best States ------------- Heat Dissipation 100 Coolant Potential 100 Energy Generation 79 Energy Capacity 1200 Matter Stores 300 Matter Capacity 300 Sight Range 16 Terrain Scan Range 16 Terrain Scan Density 10 Armor Coverage 900 Resistance: TH 30 Propulsion Shielding 66 Phase Shifting 20 Evasion (%) 60 Targeting Accuracy 8 Recoil Reduction 8 Matter Filtering 50 Offensive Hacking 14 Item Schematics ----------------- Coolant Injector | -7/Zion | Archive Imp. Heavy Armor Plating | -7/Zion | Archive Nuclear Pulse Thruster | -7/Zion | Archive Imp. Cooling System | -7/Zion | Archive Hvy. Plasma Cannon | -7/Zion | Archive Chainsword | -7/Zion | Archive KE Penetrator | -7/Zion | Archive Hpw. Shock Rifle | -7/Zion | Archive System Restoration Module | -7/Zion | Archive Lyr. Light Armor Plating | -7/Zion | Archive Fission Core | -7/Zion | Archive Hvy. Ion Cannon | -7/Zion | Archive Disruptor Cannon | -7/Zion | Archive Robot Schematics ------------------ K-01 Serf | -7/Zion | Archive S-27 Virus | -7/Zion | Archive L-41 Fighter | -7/Zion | Archive Y-72 Warden | -7/Zion | Archive Fabricated ------------ Nothing Repaired ---------- Nothing Studied --------- Adv. Treads | -7/Factory | Hacked Alien Tech Used ----------------- Matter Drive Achievements -------------- None Challenges ------------ None Game ------ Seed SchematicHackingCartridge Manual? 0 Play Time 02:39:41 Cumulative 664.5 hours Start 2026.01.25 @ 11:13:05 End 2026.01.27 @ 02:04:44 Sessions 10 Manual Loads 0 Difficulty Rogue Special Mode None Game No. 829 Rogue 829 Adventurer 0 Explorer 0 Win Type - Total 24 Types 11/1/3/3/2/0/2/2/0/0 Lore% 96 Gallery% 93 Achievement% 81 Wizard Run 0 Options --------- Layout 0 ASCII 0 Keyboard 0 Movement Mouse Keybinds 0 Fullscreen 1 Font 24/Terminus Map View 76x50 Zoom Use 0% Tactical HUD 1 Map Filters NONE Filters NONE Steam 1 RUN: 6a113d6b-6830-42dc-acd9-857a0392fe7d